[Event "SS Manhem Chess Week GM and IM tournaments 2018"]
[Site "Molnlycke kulturhus, Biblioteksgatan 2, Molnlycke, Sweden"]
[Date "2018.08.12"]
[Round "3.10"]
[White "Pantzar, Milton"]
[Black "Ernst, Thomas"]
[Result "1/2-1/2"]
[TimeControl "90 minutes for 40 moves + 30 minutes for the rest of the game + 30 seconds per move from move one."]
[WhiteTitle "FM"]
[BlackTitle "GM"]
[WhiteFideId "1721003"]
[BlackFideId "1700065"]
[WhiteElo "2306"]
[BlackElo "2346"]

1. d4 {[%clk 01:30:55]} {[%emt 00:00:04]} Nf6 {[%clk 01:30:51]} {[%emt
00:00:10]} 2. c4 {[%clk 01:31:20]} {[%emt 00:00:06]} g6 {[%clk 01:31:10]}
{[%emt 00:00:10]} 3. f3 {[%clk 01:31:37]} {[%emt 00:00:13]} d5 {[%clk
01:29:57]} {[%emt 00:01:43]} 4. cxd5 {[%clk 01:31:50]} {[%emt 00:00:17]} Nxd5
{[%clk 01:30:21]} {[%emt 00:00:05]} 5. e4 {[%clk 01:32:07]} {[%emt 00:00:14]}
Nb6 {[%clk 01:30:41]} {[%emt 00:00:10]} 6. Nc3 {[%clk 01:32:24]} {[%emt
00:00:13]} Bg7 {[%clk 01:30:46]} {[%emt 00:00:24]} 7. Be3 {[%clk 01:32:46]}
{[%emt 00:00:08]} O-O {[%clk 01:31:06]} {[%emt 00:00:11]} 8. Qd2 {[%clk
01:32:31]} {[%emt 00:00:46]} e5 {[%clk 01:30:48]} {[%emt 00:00:48]} 9. d5
{[%clk 01:32:17]} {[%emt 00:00:45]} c6 {[%clk 01:30:25]} {[%emt 00:00:52]} 10.
h4 {[%clk 01:28:16]} {[%emt 00:04:31]} h5 {[%clk 01:25:40]} {[%emt 00:05:14]}
11. g4 {[%clk 01:21:15]} {[%emt 00:07:31]} cxd5 {[%clk 01:19:39]} {[%emt
00:06:32]} 12. exd5 {[%clk 01:21:18]} {[%emt 00:00:27]} hxg4 {[%clk 01:19:09]}
{[%emt 00:01:00]} 13. h5 {[%clk 01:20:40]} {[%emt 00:01:08]} gxf3 {[%clk
01:18:48]} {[%emt 00:00:51]} 14. hxg6 {[%clk 01:10:11]} {[%emt 00:10:59]} f2+
{[%clk 01:16:53]} {[%emt 00:02:24]} 15. Qxf2 {[%clk 01:09:28]} {[%emt
00:01:13]} fxg6 {[%clk 01:17:03]} {[%emt 00:00:20]} 16. Qh2 {[%clk 01:06:05]}
{[%emt 00:03:53]} Rxf1+ {[%clk 01:12:30]} {[%emt 00:05:04]} 17. Kxf1 {[%clk
01:06:24]} {[%emt 00:00:11]} Nxd5 {[%clk 01:11:16]} {[%emt 00:01:44]} 18. Qh7+
{[%clk 00:55:04]} {[%emt 00:11:49]} Kf8 {[%clk 01:08:19]} {[%emt 00:03:26]} 19.
Qh8+ {[%clk 00:52:06]} {[%emt 00:03:29]} Bxh8 {[%clk 01:08:41]} {[%emt
00:00:08]} 20. Rxh8+ {[%clk 00:52:33]} {[%emt 00:00:03]} Kf7 {[%clk 01:08:19]}
{[%emt 00:00:51]} 21. Rxd8 {[%clk 00:52:45]} {[%emt 00:00:19]} Nxe3+ {[%clk
01:08:41]} {[%emt 00:00:07]} 22. Kf2 {[%clk 00:39:37]} {[%emt 00:13:38]} Nc6
{[%clk 01:08:58]} {[%emt 00:00:13]} 23. Rxc8 {[%clk 00:38:32]} {[%emt
00:01:36]} Rxc8 {[%clk 01:06:51]} {[%emt 00:02:37]} 24. Kxe3 {[%clk 00:38:52]}
{[%emt 00:00:10]} Nd4 {[%clk 01:06:17]} {[%emt 00:01:03]} 25. Rf1+ {[%clk
00:38:39]} {[%emt 00:00:43]} Ke6 {[%clk 01:05:58]} {[%emt 00:00:48]} 26. Nf3
{[%clk 00:34:51]} {[%emt 00:04:20]} Nxf3 {[%clk 01:03:35]} {[%emt 00:02:53]} 27.
Rxf3 {[%clk 00:34:40]} {[%emt 00:00:41]} Rc4 {[%clk 01:03:12]} {[%emt
00:00:50]} 28. Rf2 {[%clk 00:27:58]} {[%emt 00:07:14]} Rh4 {[%clk 01:02:05]}
{[%emt 00:01:35]} 29. Rf8 {[%clk 00:23:16]} {[%emt 00:05:14]} Rh2 {[%clk
00:58:23]} {[%emt 00:04:10]} 30. Ne2 {[%clk 00:23:18]} {[%emt 00:00:31]} Rh3+
{[%clk 00:58:22]} {[%emt 00:00:30]} 31. Kd2 {[%clk 00:23:07]} {[%emt 00:00:42]}
Rh7 {[%clk 00:58:14]} {[%emt 00:00:36]} 32. Rf2 {[%clk 00:22:22]} {[%emt
00:01:16]} Rh4 {[%clk 00:55:59]} {[%emt 00:02:44]} 33. Ng3 {[%clk 00:21:07]}
{[%emt 00:01:46]} Rf4 {[%clk 00:55:19]} {[%emt 00:01:08]} 34. Rg2 {[%clk
00:20:52]} {[%emt 00:00:47]} Rg4 {[%clk 00:55:11]} {[%emt 00:00:36]} 35. Ke3
{[%clk 00:21:08]} {[%emt 00:00:16]} a5 {[%clk 00:38:23]} {[%emt 00:17:18]} 36.
Rg1 {[%clk 00:17:34]} {[%emt 00:04:05]} g5 {[%clk 00:26:17]} {[%emt 00:12:36]}
37. Kf3 {[%clk 00:10:03]} {[%emt 00:08:02]} Rf4+ {[%clk 00:26:33]} {[%emt
00:00:13]} 38. Ke2 {[%clk 00:09:48]} {[%emt 00:00:46]} Rg4 {[%clk 00:26:07]}
{[%emt 00:00:54]} 39. Kf2 {[%clk 00:10:01]} {[%emt 00:00:18]} Rf4+ {[%clk
00:26:26]} {[%emt 00:00:10]} 40. Ke3 {[%clk 00:10:13]} {[%emt 00:00:19]} Rg4
{[%clk 00:26:44]} {[%emt 00:00:12]} 41. Ne2 {[%clk 00:27:28]} {[%emt 00:13:15]}
Rb4 {[%clk 00:46:51]} {[%emt 00:10:21]} 42. Rb1 {[%clk 00:24:55]} {[%emt
00:03:05]} Rh4 {[%clk 00:45:30]} {[%emt 00:01:50]} 43. Kf3 {[%clk 00:24:24]}
{[%emt 00:01:02]} b5 {[%clk 00:44:40]} {[%emt 00:01:19]} 44. Rg1 {[%clk
00:24:14]} {[%emt 00:00:40]} Rb4 {[%clk 00:44:42]} {[%emt 00:00:26]} 45. Rg2
{[%clk 00:24:08]} {[%emt 00:00:37]} a4 {[%clk 00:42:59]} {[%emt 00:02:13]} 46.
Nc3 {[%clk 00:23:31]} {[%emt 00:01:08]} g4+ {[%clk 00:41:03]} {[%emt 00:02:26]}
47. Ke3 {[%clk 00:23:18]} {[%emt 00:00:44]} Kd6 {[%clk 00:41:08]} {[%emt
00:00:23]} 48. Ne4+ {[%clk 00:22:04]} {[%emt 00:01:44]} Ke6 {[%clk 00:39:42]}
{[%emt 00:01:56]} 49. Rf2 {[%clk 00:18:55]} {[%emt 00:03:40]} Kd5 {[%clk
00:39:43]} {[%emt 00:00:29]} 50. Rd2+ {[%clk 00:18:41]} {[%emt 00:00:45]} Ke6
{[%clk 00:34:22]} {[%emt 00:05:48]} 51. Rg2 {[%clk 00:15:40]} {[%emt 00:03:32]}
Kf5 {[%clk 00:33:38]} {[%emt 00:01:12]} 52. Rf2+ {[%clk 00:15:04]} {[%emt
00:01:08]} Ke6 {[%clk 00:33:35]} {[%emt 00:00:33]} 53. Rh2 {[%clk 00:12:33]}
{[%emt 00:03:01]} Kd5 {[%clk 00:31:12]} {[%emt 00:02:52]} 54. Nc3+ {[%clk
00:11:49]} {[%emt 00:01:16]} Ke6 {[%clk 00:31:20]} {[%emt 00:00:20]} 55. Ne4
{[%clk 00:09:24]} {[%emt 00:02:56]} Kf5 {[%clk 00:25:38]} {[%emt 00:06:11]} 56.
Rh5+ {[%clk 00:09:40]} {[%emt 00:00:15]} Ke6 {[%clk 00:25:28]} {[%emt
00:00:39]} 57. Nc5+ {[%clk 00:08:21]} {[%emt 00:01:50]} Kd5 {[%clk 00:25:05]}
{[%emt 00:00:52]} 58. Rxe5+ {[%clk 00:08:11]} {[%emt 00:00:42]} Kd6 {[%clk
00:25:10]} {[%emt 00:00:24]} 59. Nd3 {[%clk 00:07:40]} {[%emt 00:01:01]} Rxb2
{[%clk 00:25:27]} {[%emt 00:00:13]} 60. Rg5 {[%clk 00:06:18]} {[%emt 00:01:52]}
Rxa2 {[%clk 00:25:25]} {[%emt 00:00:31]} 61. Rxg4 {[%clk 00:06:17]} {[%emt
00:00:32]} Rh2 {[%clk 00:22:47]} {[%emt 00:03:07]} 62. Kd4 {[%clk 00:06:05]}
{[%emt 00:00:44]} Rh6 {[%clk 00:22:59]} {[%emt 00:00:17]} 63. Kc3 {[%clk
00:05:54]} {[%emt 00:00:42]} Rh3 {[%clk 00:21:22]} {[%emt 00:02:05]} 64. Kd4
{[%clk 00:05:17]} {[%emt 00:01:09]} Rh6 {[%clk 00:21:17]} {[%emt 00:00:34]} 65.
Kc3 {[%clk 00:05:41]} {[%emt 00:00:07]} Rh3 {[%clk 00:21:32]} {[%emt 00:00:13]}
1/2-1/2

[Event "SS Manhem Chess Week GM and IM tournaments 2018"]
[Site "Molnlycke kulturhus, Biblioteksgatan 2, Molnlycke, Sweden"]
[Date "2018.08.13"]
[Round "4.1"]
[White "Brynell, Stellan"]
[Black "Gritsak, Orest"]
[Result "1/2-1/2"]
[TimeControl "90 minutes for 40 moves + 30 minutes for the rest of the game + 30 seconds per move from move one."]
[WhiteTitle "GM"]
[BlackTitle "GM"]
[WhiteFideId "1700219"]
[BlackFideId "14102188"]
[WhiteElo "2391"]
[BlackElo "2464"]

1. d4 {[%clk 01:30:54]} {[%emt 00:00:04]} Nf6 {[%clk 01:30:29]} {[%emt
00:00:32]} 2. c4 {[%clk 01:31:12]} {[%emt 00:00:12]} g6 {[%clk 01:30:41]}
{[%emt 00:00:19]} 3. g3 {[%clk 01:31:31]} {[%emt 00:00:11]} c5 {[%clk
01:24:33]} {[%emt 00:06:38]} 4. dxc5 {[%clk 01:31:05]} {[%emt 00:00:55]} Qa5+
{[%clk 01:23:41]} {[%emt 00:01:23]} 5. Nc3 {[%clk 01:31:26]} {[%emt 00:00:07]}
Qxc5 {[%clk 01:24:06]} {[%emt 00:00:06]} 6. Qa4 {[%clk 01:25:54]} {[%emt
00:06:02]} Qc6 {[%clk 01:14:34]} {[%emt 00:10:02]} 7. Nf3 {[%clk 01:24:01]}
{[%emt 00:02:23]} Qxa4 {[%clk 01:09:25]} {[%emt 00:05:40]} 8. Nxa4 {[%clk
01:24:28]} {[%emt 00:00:02]} b6 {[%clk 01:08:02]} {[%emt 00:01:53]} 9. Bg2
{[%clk 01:22:47]} {[%emt 00:02:09]} Bb7 {[%clk 01:08:03]} {[%emt 00:00:30]} 10.
b3 {[%clk 01:19:25]} {[%emt 00:03:52]} Bg7 {[%clk 00:55:26]} {[%emt 00:13:07]}
11. Bb2 {[%clk 01:19:45]} {[%emt 00:00:10]} Na6 {[%clk 00:54:14]} {[%emt
00:01:43]} 12. O-O {[%clk 01:19:10]} {[%emt 00:01:05]} Nc5 {[%clk 00:52:04]}
{[%emt 00:02:40]} 13. Nc3 {[%clk 01:19:27]} {[%emt 00:00:12]} Nfe4 {[%clk
00:51:29]} {[%emt 00:01:05]} 14. Rac1 {[%clk 01:18:40]} {[%emt 00:01:17]}
1/2-1/2

[Event "SS Manhem Chess Week GM and IM tournaments 2018"]
[Site "Molnlycke kulturhus, Biblioteksgatan 2, Molnlycke, Sweden"]
[Date "2018.08.13"]
[Round "4.3"]
[White "Rozentalis, Eduardas"]
[Black "Christiansen, Johan-Sebastian"]
[Result "1/2-1/2"]
[TimeControl "90 minutes for 40 moves + 30 minutes for the rest of the game + 30 seconds per move from move one."]
[WhiteTitle "GM"]
[BlackTitle "IM"]
[WhiteFideId "12800023"]
[BlackFideId "1512668"]
[WhiteElo "2503"]
[BlackElo "2515"]

1. e4 {[%clk 01:30:57]} {[%emt 00:00:02]} e5 {[%clk 01:30:23]} {[%emt
00:00:38]} 2. Nf3 {[%clk 01:31:04]} {[%emt 00:00:22]} Nc6 {[%clk 01:30:49]}
{[%emt 00:00:04]} 3. Bc4 {[%clk 01:30:14]} {[%emt 00:01:19]} Nf6 {[%clk
01:31:14]} {[%emt 00:00:05]} 4. d3 {[%clk 01:30:35]} {[%emt 00:00:09]} h6
{[%clk 01:31:41]} {[%emt 00:00:04]} 5. c3 {[%clk 01:29:30]} {[%emt 00:01:35]}
d6 {[%clk 01:32:07]} {[%emt 00:00:04]} 6. Nbd2 {[%clk 01:28:25]} {[%emt
00:01:33]} g5 {[%clk 01:31:24]} {[%emt 00:01:13]} 7. h3 {[%clk 01:26:08]}
{[%emt 00:02:47]} Bg7 {[%clk 01:31:50]} {[%emt 00:00:05]} 8. Nf1 {[%clk
01:26:05]} {[%emt 00:00:32]} O-O {[%clk 01:31:30]} {[%emt 00:00:50]} 9. Ng3
{[%clk 01:22:59]} {[%emt 00:03:36]} Ne7 {[%clk 01:30:57]} {[%emt 00:01:04]} 10.
Bb3 {[%clk 01:20:52]} {[%emt 00:02:36]} c6 {[%clk 01:29:48]} {[%emt 00:01:39]}
11. h4 {[%clk 01:12:22]} {[%emt 00:09:00]} g4 {[%clk 01:29:59]} {[%emt
00:00:19]} 12. Nh2 {[%clk 01:12:35]} {[%emt 00:00:16]} d5 {[%clk 01:26:07]}
{[%emt 00:04:22]} 13. h5 {[%clk 01:10:53]} {[%emt 00:02:12]} Be6 {[%clk
01:21:44]} {[%emt 00:04:53]} 14. O-O {[%clk 00:59:01]} {[%emt 00:12:21]} Qd7
{[%clk 01:13:47]} {[%emt 00:08:28]} 15. f4 {[%clk 00:56:14]} {[%emt 00:03:17]}
gxf3 {[%clk 00:56:54]} {[%emt 00:17:24]} 16. Qxf3 {[%clk 00:56:06]} {[%emt
00:00:37]} Kh7 {[%clk 00:53:02]} {[%emt 00:04:21]} 17. Nf5 {[%clk 00:50:28]}
{[%emt 00:06:08]} dxe4 {[%clk 00:42:55]} {[%emt 00:10:38]} 18. dxe4 {[%clk
00:50:47]} {[%emt 00:00:11]} Nxf5 {[%clk 00:38:03]} {[%emt 00:05:22]} 19. exf5
{[%clk 00:50:33]} {[%emt 00:00:44]} Bxb3 {[%clk 00:38:08]} {[%emt 00:00:25]} 20.
axb3 {[%clk 00:50:58]} {[%emt 00:00:05]} Qd5 {[%clk 00:32:24]} {[%emt
00:06:14]} 21. b4 {[%clk 00:42:50]} {[%emt 00:08:38]} Qxf3 {[%clk 00:30:06]}
{[%emt 00:02:48]} 22. Rxf3 {[%clk 00:41:59]} {[%emt 00:01:20]} e4 {[%clk
00:28:05]} {[%emt 00:02:32]} 23. Rh3 {[%clk 00:41:35]} {[%emt 00:00:54]} Rfd8
{[%clk 00:24:37]} {[%emt 00:03:58]} 24. Be3 {[%clk 00:39:07]} {[%emt 00:02:57]}
Rd3 {[%clk 00:24:30]} {[%emt 00:00:38]} 25. Nf1 {[%clk 00:34:08]} {[%emt
00:05:29]} a6 {[%clk 00:24:08]} {[%emt 00:00:53]} 26. Rh4 {[%clk 00:32:28]}
{[%emt 00:02:09]} Re8 {[%clk 00:20:05]} {[%emt 00:04:33]} 27. Re1 {[%clk
00:29:47]} {[%emt 00:03:11]} Nd5 {[%clk 00:10:37]} {[%emt 00:09:58]} 28. Bc1
{[%clk 00:21:17]} {[%emt 00:09:00]} e3 {[%clk 00:09:49]} {[%emt 00:01:19]}
1/2-1/2

[Event "SS Manhem Chess Week GM and IM tournaments 2018"]
[Site "Molnlycke kulturhus, Biblioteksgatan 2, Molnlycke, Sweden"]
[Date "2018.08.13"]
[Round "4.4"]
[White "Lindberg, Bengt"]
[Black "Vestby-Ellingsen, Mads"]
[Result "1/2-1/2"]
[TimeControl "90 minutes for 40 moves + 30 minutes for the rest of the game + 30 seconds per move from move one."]
[WhiteTitle "IM"]
[BlackTitle "FM"]
[WhiteFideId "1700359"]
[BlackFideId "1520857"]
[WhiteElo "2416"]
[BlackElo "2409"]

1. e4 {[%clk 01:30:56]} {[%emt 00:00:02]} e5 {[%clk 01:30:50]} {[%emt
00:00:10]} 2. Nf3 {[%clk 01:31:13]} {[%emt 00:00:14]} Nc6 {[%clk 01:31:11]}
{[%emt 00:00:09]} 3. Bb5 {[%clk 01:31:36]} {[%emt 00:00:07]} a6 {[%clk
01:31:32]} {[%emt 00:00:08]} 4. Ba4 {[%clk 01:31:58]} {[%emt 00:00:09]} Nf6
{[%clk 01:31:51]} {[%emt 00:00:10]} 5. O-O {[%clk 01:31:58]} {[%emt 00:00:31]}
Be7 {[%clk 01:32:13]} {[%emt 00:00:08]} 6. Re1 {[%clk 01:32:10]} {[%emt
00:00:18]} b5 {[%clk 01:32:37]} {[%emt 00:00:06]} 7. Bb3 {[%clk 01:32:32]}
{[%emt 00:00:09]} O-O {[%clk 01:32:56]} {[%emt 00:00:11]} 8. c3 {[%clk
01:32:49]} {[%emt 00:00:12]} d5 {[%clk 01:33:15]} {[%emt 00:00:11]} 9. exd5
{[%clk 01:32:57]} {[%emt 00:00:23]} Nxd5 {[%clk 01:33:35]} {[%emt 00:00:09]} 10.
Nxe5 {[%clk 01:33:13]} {[%emt 00:00:14]} Nxe5 {[%clk 01:33:56]} {[%emt
00:00:09]} 11. Rxe5 {[%clk 01:33:37]} {[%emt 00:00:07]} c6 {[%clk 01:34:18]}
{[%emt 00:00:08]} 12. d4 {[%clk 01:33:54]} {[%emt 00:00:13]} Bd6 {[%clk
01:34:40]} {[%emt 00:00:07]} 13. Re1 {[%clk 01:34:06]} {[%emt 00:00:18]} Qh4
{[%clk 01:35:01]} {[%emt 00:00:09]} 14. g3 {[%clk 01:34:22]} {[%emt 00:00:14]}
Qh3 {[%clk 01:35:24]} {[%emt 00:00:07]} 15. Re4 {[%clk 01:34:42]} {[%emt
00:00:11]} g5 {[%clk 01:35:46]} {[%emt 00:00:08]} 16. Qf1 {[%clk 01:35:01]}
{[%emt 00:00:11]} Qh5 {[%clk 01:35:56]} {[%emt 00:00:20]} 17. Nd2 {[%clk
01:34:42]} {[%emt 00:00:50]} Bf5 {[%clk 01:36:15]} {[%emt 00:00:11]} 18. f3
{[%clk 01:34:48]} {[%emt 00:00:23]} Nf6 {[%clk 01:36:34]} {[%emt 00:00:12]} 19.
Qf2 {[%clk 01:11:16]} {[%emt 00:24:03]} Qg6 {[%clk 01:25:10]} {[%emt 00:11:54]}
20. Re3 {[%clk 00:54:13]} {[%emt 00:17:32]} Rae8 {[%clk 01:19:41]} {[%emt
00:05:59]} 21. Nf1 {[%clk 00:52:34]} {[%emt 00:02:09]} g4 {[%clk 00:55:30]}
{[%emt 00:24:42]} 22. Rxe8 {[%clk 00:47:28]} {[%emt 00:05:36]} Rxe8 {[%clk
00:55:48]} {[%emt 00:00:11]} 23. Ne3 {[%clk 00:47:40]} {[%emt 00:00:18]} Bd3
{[%clk 00:48:51]} {[%emt 00:07:27]} 24. fxg4 {[%clk 00:40:12]} {[%emt
00:07:57]} Ne4 {[%clk 00:28:31]} {[%emt 00:20:51]} 25. Qf5 {[%clk 00:35:05]}
{[%emt 00:05:36]} Ng5 {[%clk 00:19:11]} {[%emt 00:09:51]} 26. Qxg6+ {[%clk
00:33:47]} {[%emt 00:01:48]} hxg6 {[%clk 00:19:24]} {[%emt 00:00:17]} 27. Bc2
{[%clk 00:15:29]} {[%emt 00:18:49]} Bxc2 {[%clk 00:13:35]} {[%emt 00:06:19]} 28.
Nxc2 {[%clk 00:15:57]} {[%emt 00:00:02]} Nf3+ {[%clk 00:13:38]} {[%emt
00:00:27]} 29. Kf2 {[%clk 00:02:59]} {[%emt 00:13:28]} Nxh2 {[%clk 00:13:50]}
{[%emt 00:00:19]} 30. Ne3 {[%clk 00:03:21]} {[%emt 00:00:09]} f5 {[%clk
00:11:48]} {[%emt 00:02:32]} 31. gxf5 {[%clk 00:03:24]} {[%emt 00:00:28]} gxf5
{[%clk 00:12:08]} {[%emt 00:00:09]} 32. Bd2 {[%clk 00:00:53]} {[%emt 00:03:00]}
f4 {[%clk 00:08:44]} {[%emt 00:03:54]} 33. gxf4 {[%clk 00:01:21]} {[%emt
00:00:02]} Bxf4 {[%clk 00:09:04]} {[%emt 00:00:10]} 34. Rg1+ {[%clk 00:01:32]}
{[%emt 00:00:18]} Kf8 {[%clk 00:07:34]} {[%emt 00:02:00]} 35. Rg2 {[%clk
00:00:53]} {[%emt 00:01:09]} Re4 {[%clk 00:06:33]} {[%emt 00:01:31]} 36. Nf1
{[%clk 00:00:32]} {[%emt 00:00:52]} Nxf1 {[%clk 00:06:04]} {[%emt 00:00:58]} 37.
Kxf1 {[%clk 00:01:00]} {[%emt 00:00:03]} Bxd2 {[%clk 00:05:59]} {[%emt
00:00:34]} 38. Rxd2 {[%clk 00:01:28]} {[%emt 00:00:02]} Rh4 {[%clk 00:06:04]}
{[%emt 00:00:25]} 39. Re2 {[%clk 00:01:52]} {[%emt 00:00:07]} Rh1+ {[%clk
00:05:27]} {[%emt 00:01:07]} 40. Kf2 {[%clk 00:02:20]} {[%emt 00:00:02]} Kf7
{[%clk 00:05:24]} {[%emt 00:00:33]} 41. a3 {[%clk 00:24:50]} {[%emt 00:08:01]}
a5 {[%clk 00:33:02]} {[%emt 00:02:51]} 42. Kg3 {[%clk 00:22:43]} {[%emt
00:02:36]} a4 {[%clk 00:26:28]} {[%emt 00:07:05]} 43. Re5 {[%clk 00:11:29]}
{[%emt 00:11:44]} Rb1 {[%clk 00:21:47]} {[%emt 00:05:10]} 44. Rc5 {[%clk
00:10:43]} {[%emt 00:01:17]} Rxb2 {[%clk 00:18:02]} {[%emt 00:04:14]} 45. Rxc6
{[%clk 00:11:08]} {[%emt 00:00:05]} Ke7 {[%clk 00:17:11]} {[%emt 00:01:21]} 46.
Kf4 {[%clk 00:10:06]} {[%emt 00:01:32]} Rb3 {[%clk 00:14:52]} {[%emt 00:02:49]}
47. Ke5 {[%clk 00:09:46]} {[%emt 00:00:50]} Kd7 {[%clk 00:12:53]} {[%emt
00:02:30]} 48. Kd5 {[%clk 00:07:28]} {[%emt 00:02:47]} Rxa3 {[%clk 00:12:03]}
{[%emt 00:01:21]} 49. c4 {[%clk 00:07:46]} {[%emt 00:00:11]} bxc4 {[%clk
00:11:32]} {[%emt 00:01:02]} 50. Rxc4 {[%clk 00:08:11]} {[%emt 00:00:05]}
1/2-1/2

[Event "SS Manhem Chess Week GM and IM tournaments 2018"]
[Site "Molnlycke kulturhus, Biblioteksgatan 2, Molnlycke, Sweden"]
[Date "2018.08.13"]
[Round "4.5"]
[White "Johansson, Linus"]
[Black "Sammalvuo, Tapani"]
[Result "1/2-1/2"]
[TimeControl "90 minutes for 40 moves + 30 minutes for the rest of the game + 30 seconds per move from move one."]
[WhiteTitle "IM"]
[BlackTitle "IM"]
[WhiteFideId "1711113"]
[BlackFideId "501115"]
[WhiteElo "2457"]
[BlackElo "2411"]

1. d4 {[%clk 01:30:57]} {[%emt 00:00:02]} Nf6 {[%clk 01:30:58]} {[%emt
00:00:03]} 2. c4 {[%clk 01:31:22]} {[%emt 00:00:04]} e6 {[%clk 01:31:21]}
{[%emt 00:00:06]} 3. Nc3 {[%clk 01:31:49]} {[%emt 00:00:03]} Bb4 {[%clk
01:31:48]} {[%emt 00:00:03]} 4. g3 {[%clk 01:32:14]} {[%emt 00:00:06]} O-O
{[%clk 01:31:57]} {[%emt 00:00:20]} 5. Bg2 {[%clk 01:32:39]} {[%emt 00:00:05]}
d5 {[%clk 01:32:25]} {[%emt 00:00:02]} 6. a3 {[%clk 01:33:03]} {[%emt
00:00:07]} Be7 {[%clk 01:32:51]} {[%emt 00:00:04]} 7. cxd5 {[%clk 01:33:16]}
{[%emt 00:00:18]} exd5 {[%clk 01:33:18]} {[%emt 00:00:02]} 8. e3 {[%clk
01:33:38]} {[%emt 00:00:08]} c6 {[%clk 01:33:38]} {[%emt 00:00:10]} 9. Nge2
{[%clk 01:34:03]} {[%emt 00:00:05]} Na6 {[%clk 01:33:00]} {[%emt 00:01:08]} 10.
O-O {[%clk 01:34:26]} {[%emt 00:00:07]} Nc7 {[%clk 01:33:26]} {[%emt 00:00:03]}
11. Nf4 {[%clk 01:32:14]} {[%emt 00:02:43]} Ne6 {[%clk 01:25:58]} {[%emt
00:07:58]} 12. Nd3 {[%clk 01:32:33]} {[%emt 00:00:11]} b6 {[%clk 01:25:12]}
{[%emt 00:01:16]} 13. b4 {[%clk 01:28:46]} {[%emt 00:04:16]} Bb7 {[%clk
01:21:46]} {[%emt 00:03:56]} 14. Bb2 {[%clk 01:28:21]} {[%emt 00:00:55]} a5
{[%clk 01:07:59]} {[%emt 00:14:17]} 15. Qb3 {[%clk 01:28:09]} {[%emt 00:00:42]}
axb4 {[%clk 01:08:16]} {[%emt 00:00:13]} 16. axb4 {[%clk 01:28:27]} {[%emt
00:00:12]} Rxa1 {[%clk 01:08:43]} {[%emt 00:00:03]} 17. Rxa1 {[%clk 01:28:47]}
{[%emt 00:00:10]} Qd6 {[%clk 01:09:04]} {[%emt 00:00:09]} 18. Ra7 {[%clk
01:19:12]} {[%emt 00:10:05]} Qb8 {[%clk 01:08:43]} {[%emt 00:00:51]} 19. Qa2
{[%clk 01:11:17]} {[%emt 00:08:25]} Rd8 {[%clk 01:07:12]} {[%emt 00:02:01]} 20.
b5 {[%clk 01:09:06]} {[%emt 00:02:41]} c5 {[%clk 00:56:30]} {[%emt 00:11:12]}
21. dxc5 {[%clk 01:09:19]} {[%emt 00:00:18]} bxc5 {[%clk 00:54:41]} {[%emt
00:02:18]} 22. b6 {[%clk 01:09:24]} {[%emt 00:00:25]} c4 {[%clk 00:42:31]}
{[%emt 00:12:40]} 23. Nf4 {[%clk 01:07:13]} {[%emt 00:02:40]} Nxf4 {[%clk
00:36:28]} {[%emt 00:06:33]} 24. gxf4 {[%clk 01:06:47]} {[%emt 00:00:56]} Qc8
{[%clk 00:33:55]} {[%emt 00:03:03]} 25. Ne2 {[%clk 01:01:04]} {[%emt 00:06:13]}
Qc6 {[%clk 00:23:25]} {[%emt 00:11:00]} 26. Bd4 {[%clk 01:00:19]} {[%emt
00:01:15]} Ne4 {[%clk 00:16:40]} {[%emt 00:07:16]} 27. Qa4 {[%clk 00:45:35]}
{[%emt 00:15:15]} Qxa4 {[%clk 00:12:56]} {[%emt 00:04:14]} 28. Rxa4 {[%clk
00:45:58]} {[%emt 00:00:06]} Ra8 {[%clk 00:13:17]} {[%emt 00:00:09]} 29. Ra7
{[%clk 00:40:54]} {[%emt 00:05:34]} Rxa7 {[%clk 00:13:44]} {[%emt 00:00:03]} 30.
bxa7 {[%clk 00:41:18]} {[%emt 00:00:07]} Bb4 {[%clk 00:13:17]} {[%emt
00:00:56]} 31. Bxe4 {[%clk 00:34:42]} {[%emt 00:07:06]} dxe4 {[%clk 00:13:46]}
{[%emt 00:00:02]} 32. Nc3 {[%clk 00:35:04]} {[%emt 00:00:08]} Bxc3 {[%clk
00:13:21]} {[%emt 00:00:55]} 33. Bxc3 {[%clk 00:35:29]} {[%emt 00:00:05]} f5
{[%clk 00:13:37]} {[%emt 00:00:14]} 34. Kf1 {[%clk 00:35:20]} {[%emt 00:00:39]}
Kf7 {[%clk 00:14:04]} {[%emt 00:00:03]} 35. Ke2 {[%clk 00:35:44]} {[%emt
00:00:06]} g6 {[%clk 00:09:19]} {[%emt 00:05:15]} 36. Kd2 {[%clk 00:35:47]}
{[%emt 00:00:28]} Ke6 {[%clk 00:09:45]} {[%emt 00:00:03]} 37. Bd4 {[%clk
00:36:11]} {[%emt 00:00:05]} Ba8 {[%clk 00:08:13]} {[%emt 00:02:03]} 38. Kc3
{[%clk 00:36:35]} {[%emt 00:00:06]} Kd7 {[%clk 00:08:07]} {[%emt 00:00:36]} 39.
Kxc4 {[%clk 00:36:55]} {[%emt 00:00:12]} Bb7 {[%clk 00:08:33]} {[%emt
00:00:03]} 40. Bc5 {[%clk 00:36:06]} {[%emt 00:01:19]} Ba8 {[%clk 00:08:56]}
{[%emt 00:00:07]} 41. Kd4 {[%clk 00:36:08]} {[%emt 00:00:28]} Ke6 {[%clk
00:09:21]} {[%emt 00:00:05]} 42. Bb6 {[%clk 00:36:08]} {[%emt 00:00:30]} Bb7
{[%clk 00:09:44]} {[%emt 00:00:06]} 43. Bd8 {[%clk 00:36:31]} {[%emt 00:00:07]}
Ba8 {[%clk 00:10:03]} {[%emt 00:00:11]} 44. Bg5 {[%clk 00:36:54]} {[%emt
00:00:07]} h5 {[%clk 00:09:32]} {[%emt 00:01:01]} 1/2-1/2